{"text_format":"3","workbook":"xlsx","n_sheets":1,"sheets":["报价表"],"not_rendered":{"defined_names":1},"read":"whole","date_system":"1900"}

{"sheet":"报价表","index":0,"n_rows":58,"n_cols":8,"rows_kept":58,"merged":[[0,0,0,7],[2,0,11,0],[12,0,17,0],[18,0,23,0],[24,0,53,0],[35,1,36,1],[52,1,53,1],[57,0,57,4]]}
["2025年氢能产业创新发展大会暨攀枝花氢能产业投资推介会会务执行服务报价表"]
["事项","内容","细节","数量","单位","单价/元(包干含税)","价格/元(包干含税)","备注"]
["舞美","舞台","钢架舞台16*5m*0.6m",80,"平方米",null,{"$f":"SUM(D3*F3)","v":0}]
[null,"舞台地毯","灰色加厚拉绒，18m*6m",108,"平方米",null,{"$f":"SUM(D4*F4)","v":0}]
[null,"舞台台阶","30cm踏面，20cm踢面，两步梯，正面4m，2组；侧面 2.4m，2组",12.8,"米",null,0]
[null,"舞台LED斜面","斜面LED P2.5 8*1m",8,"平方米",null,0]
[null,"LED主屏幕","屏幕LED p2.5, 16m*5m",80,"平方米",null,0,"含背景网架"]
[null,"控台系统（含围挡桁架）",null,1,"套",null,0]
[null,"嘉宾沙发座椅","白色，带桌套，皮质沙发",40,"把",null,0]
[null,"茶几","白色，带罩，配套茶几",40,"张",null,0]
[null,"机遇清单（产业链供需、投资机遇、产业政策）发布仪式系统（含发布视频制作）","透明屏道具 8m",1,"项",null,0,"含提前彩排"]
[null,"签约仪式系统","电子签约",12,"个",null,0,"含提前彩排"]
["灯光设备","灯光架（含包装美化）",null,50,"米",null,0]
[null,"逆光（ETC Par灯）","逆光（LED Par灯）、氛围营造",20,"台",null,0]
[null,"光束灯","逆光（光束灯）、氛围营造",12,"台",null,0]
[null,"面光灯","COB面光灯",12,"台",null,0]
[null,"切割灯","氛围营造",8,"台",null,0]
[null,"灯控系统","调试，彩排，执行",1,"台",null,0]
["影音设备","全频音响",null,8,"只",null,0]
[null,"超低音箱",null,4,"只",null,0]
[null,"返送音响",null,2,"只",null,0]
[null,"数字调音台",null,1,"台",null,0]
[null,"无线手持麦克 ",null,4,"台",null,0]
[null,"联排电容话筒（串联）","领导讲话讲台话筒",2,"套",null,0]
["会务服务","主持人","专业主持人",1,"位",null,0,"含提前彩排"]
[null,"主旨演讲嘉宾","氢能领域专家学者",15,"位",null,0]
[null,"投资机遇清单设计印制","折页宣传册设计、制作",200,"册",null,0]
[null,"ppt制作","投资推介ppt制作",35,"页",null,0]
[null,"礼仪","身高1.7米模特(女)，商务装",4,"人",null,0,"含提前彩排"]
[null,"兼职人员","彩排以及正式活动道具上台，统一着装",12,"人",null,0,"含提前彩排"]
[null,"摄像师（含拍摄台）","定点返打机位",2,"位",null,0,"含提前彩排\n提供全程录像资料"]
[null,"摄影师","提前选定拍摄角度等（含通过二维码实时照片）",1,"位",null,0,"提供高质量图片资料"]
[null,"讲台包装KT板","背胶哑膜裱KT板",2,"项",null,0]
[null,"翻页器","CUE工程级翻页器",2,"项",null,0,"赠送"]
[null,"签到物料采买","签到册（1个）、签到笔（3支）",1,"套",null,0,"赠送"]
[null,"三角台卡","250G铜版纸压痕",200,"个",null,{"$f":"SUM(D36*F36)","v":0}]
[null,null,"250G铜版纸压痕",100,"个",null,0,"用于现场打印桌卡"]
[null,"分厅桌卡","250G铜版纸压痕",200,"个",null,0]
[null,"电子会议手册","电子版的会议指南（含座位示意图，攀枝花简介、参会地点等）",1,"个",null,0,"赠送"]
[null,"纸质会议手册","纸质版的会议指南（含座位示意图，攀枝花简介、参会地点等）",200,"册",null,0]
[null,"议程单","A4，250G铜版纸亚膜，双面打印",400,"个",null,0]
[null,"餐边单","餐边单冰白纸300k",200,"个",null,0]
[null,"小席卡","小席卡冰白纸300k模切、粘胶成型",200,"个",null,0]
[null,"嘉宾名册","A4，骑马钉装订，铜版纸亚膜",50,"份",null,0]
[null,"特色展品展板","桁架结构，PVC雕刻装饰，5m*3m*0.6m，8组",120,"平方米",null,0]
[null,"主题展示墙","桁架结构，PVC雕刻装饰，5m*3m*0.6m",15,"平方米",null,0,"攀枝花介绍"]
[null,"指引水牌","1.8m*0.8m，",6,"个",null,0]
[null,"会场外签到板","桁架黑底UV宝丽布，6m*3m*0.6m",18,"平方米",null,0,"含木质定制边框"]
[null,"地贴",null,20,"张",null,0,"赠送"]
[null,"签约站位示意图",null,20,"个",null,0,"赠送"]
[null,"会议袋","会议袋",200,"个",null,0]
[null,"讲台","木制烤漆讲台租赁",1,"项",null,0]
[null,"电子产品","笔记本电脑、打印机、A4纸、订书针、订书机各2套",2,"套",null,0,"免费提供，用于会务办公，会后归还"]
[null,null,"用于现场补打桌牌的笔记本电脑和打印机",1,"套",null,0,"免费提供，电脑运行流畅，打印机要适用打印桌卡和嘉宾手册"]
["展览展示","会场外围主题展","展台（木质结构）设计、搭建，展品标签，现场氛围营造",8,"个",null,0,"含灯光走线"]
["人工运输","人工、往返运输","进场及拆场",2,"项",null,0]
["策划设计","策划设计费用","会务方案策划、主视觉设计及其延展设计、现场流程 PPT 制作、展览展示等全套设计策划",1,"项",null,0]
["备注：具体服务事项根据活动实际需要增减，最终费用结算以实际发生为准！",{"$nulls":4},"费用合计",{"$f":"SUM(G3:G57)","v":0}]